fUSD/lending_fUSD_20250814
["ID","MTS","AMOUNT","RATE_DAILY","PERIOD"]
[379222036,1755195065583,-1453.35,0.00027397,2]
[379222037,1755195065593,-400.0,0.00027397,2]
[379222038,1755195065603,-399.179645,0.00027397,7]
[379222039,1755195065612,-399.179645,0.00027397,7]
[379222040,1755195065621,-400.0,0.00027397,2]
[379222041,1755195065631,-400.0,0.00027397,2]
[379222042,1755195065641,-400.0,0.00027397,2]
[379222043,1755195065650,-400.0,0.00027397,2]
[379222044,1755195065659,-400.0,0.00027397,2]
[379222045,1755195065670,-400.0,0.00027397,2]
[379222046,1755195065680,-400.0,0.00027397,2]
[379222047,1755195065689,-1476.5,0.00027397,2]
[379222048,1755195065699,-944.9,0.00027397,2]
[379222049,1755195065708,-400.0,0.00027397,2]
[379222050,1755195065719,-400.0,0.00027397,2]
[379222051,1755195065729,-7640.36,0.00027397,2]
[379222052,1755195065739,-402.56876129,0.00027397,2]
[379222053,1755195065749,-399.179645,0.00027397,7]
[379222054,1755195065759,-399.179645,0.00027397,7]
[379222055,1755195065768,-975.28152466,0.00027397,2]
[379222056,1755195065814,-76.45847534,0.00027397,2]
[379222057,1755195065823,-400.0,0.00027397,2]
[379222058,1755195065832,-1764.81,0.00027397,2]
[379222059,1755195065841,-796.41,0.00027397,2]
[379222060,1755195065851,-178.45211178,0.00027397,2]
[379222061,1755195066618,-21478.0,0.00026462,2]
[379222062,1755195066629,-205.18063015,0.0002685,2]
[379222063,1755195066639,-205.18063015,0.00026901,2]
[379222064,1755195066649,-205.18063015,0.00026914,2]
[379222065,1755195066659,-205.18063015,0.00026975,2]
[379222066,1755195066669,-205.18063015,0.00026977,2]
[379222067,1755195066679,-38371.2003846,0.00026982,2]
[379222068,1755195066690,-321.54788822,0.00027397,2]
[379222069,1755195066700,-400.0,0.00027397,2]
[379222070,1755195066710,-500.0,0.00027397,2]
[379222071,1755195066720,-500.0,0.00027397,2]
[379222072,1755195066731,-400.0,0.00027397,2]
[379222073,1755195066740,-500.0,0.00027397,2]
[379222074,1755195066750,-500.0,0.00027397,2]
[379222075,1755195066760,-500.0,0.00027397,2]
[379222076,1755195066769,-500.0,0.00027397,2]
[379222077,1755195066779,-500.0,0.00027397,2]
[379222078,1755195066788,-500.0,0.00027397,2]
[379222079,1755195066798,-500.0,0.00027397,2]
[379222080,1755195066807,-500.0,0.00027397,2]
[379222081,1755195066816,-500.0,0.00027397,2]
[379222082,1755195066826,-500.0,0.00027397,2]
[379222083,1755195066836,-2859.96,0.00027397,2]
[379222084,1755195066846,-279.75,0.00027397,2]
[379222085,1755195066855,-500.0,0.00027397,2]
[379222086,1755195066870,-500.0,0.00027397,2]
[379222087,1755195066891,-315.40181519,0.00027397,2]
[379222088,1755195066911,-500.0,0.00027397,2]
[379222089,1755195066930,-500.0,0.00027397,2]
[379222090,1755195066940,-473.8,0.00027397,2]
[379222091,1755195066951,-1244.34,0.00027397,2]
[379222092,1755195066961,-688.73,0.00027397,2]
[379222093,1755195066970,-704.94,0.00027397,2]
[379222094,1755195066980,-400.0,0.00027397,2]
[379222095,1755195066991,-400.0,0.00027397,2]
[379222096,1755195067001,-508.09,0.00027397,2]
[379222097,1755195067011,-11580.7,0.00027397,2]
[379222098,1755195067021,-10344.09,0.00027397,2]
[379222099,1755195067031,-1881.91,0.00027397,2]
[379222100,1755195067042,-11849.53,0.00027397,2]
[379222101,1755195067051,-2827.48,0.00027397,2]
[379222102,1755195067061,-585.48,0.00027397,2]
[379222103,1755195067071,-25440.45,0.00027397,2]
[379222104,1755195067081,-400.0,0.00027397,2]
[379222105,1755195067090,-934.61,0.00027397,2]
[379222106,1755195067107,-3703.68,0.00027397,2]
[379222107,1755195067117,-1549.98,0.00027397,2]
[379222108,1755195067127,-2000.0,0.00027397,30]
[379222109,1755195067137,-1406.61,0.00027397,2]
[379222110,1755195067147,-11761.91,0.00027397,2]
[379222111,1755195067157,-400.0,0.00027397,2]
[379222112,1755195067168,-1587.44,0.00027397,2]
[379222113,1755195067177,-400.0,0.00027397,2]
[379222114,1755195067186,-1037.4,0.00027397,2]
[379222115,1755195067204,-940.58,0.00027397,2]
[379222116,1755195067224,-400.0,0.00027397,2]
[379222117,1755195067244,-912.49,0.00027397,2]
[379222118,1755195067264,-400.0,0.00027397,2]
[379222119,1755195067281,-1069.7,0.00027397,2]
[379222120,1755195067300,-400.0,0.00027397,2]
[379222121,1755195067321,-5851.47,0.00027397,2]
[379222122,1755195067342,-1882.08,0.00027397,2]
[379222123,1755195067360,-595.34,0.00027397,2]
[379222124,1755195067379,-517.57,0.00027397,2]
[379222125,1755195067396,-617.0,0.00027397,2]
[379222126,1755195067411,-400.0,0.00027397,2]
[379222127,1755195067429,-400.0,0.00027397,2]
[379222128,1755195067442,-400.0,0.00027397,2]
[379222129,1755195067462,-2544.98,0.00027397,2]
[379222130,1755195067477,-2274.1,0.00027397,2]
[379222131,1755195067504,-7732.77,0.00027397,2]
[379222132,1755195067519,-1395.08,0.00027397,2]
[379222133,1755195067536,-6455.48,0.00027397,2]
[379222134,1755195067553,-581.76,0.00027397,2]
[379222135,1755195067569,-894.36,0.00027397,2]
[379222136,1755195067585,-767.28,0.00027397,2]
[379222137,1755195067601,-400.0,0.00027397,2]
[379222138,1755195067617,-400.0,0.00027397,2]
[379222139,1755195067634,-4569.71,0.00027397,2]
[379222140,1755195067651,-400.0,0.00027397,2]
[379222141,1755195067667,-2141.48,0.00027397,2]
[379222142,1755195067684,-7868.03,0.00027397,2]
[379222143,1755195067700,-983.93,0.00027397,2]
[379222144,1755195067716,-5153.75,0.00027397,2]
[379222145,1755195067733,-883.77,0.00027397,2]
[379222146,1755195067749,-400.0,0.00027397,2]
[379222147,1755195067764,-928.99,0.00027397,2]
[379222148,1755195067781,-400.0,0.00027397,2]
[379222149,1755195067798,-400.0,0.00027397,2]
[379222150,1755195067814,-400.0,0.00027397,2]
[379222151,1755195067831,-400.0,0.00027397,2]
[379222152,1755195067846,-3063.06,0.00027397,2]
[379222153,1755195067866,-980.79,0.00027397,2]
[379222154,1755195067884,-756.22,0.00027397,2]
[379222155,1755195067900,-166.11470442,0.00027397,2]
[379222156,1755195067915,-1383.82,0.00027397,2]
[379222157,1755195067931,-2620.98,0.00027397,2]
[379222158,1755195067946,-678.13,0.00027397,2]
[379222159,1755195067961,-1764.94,0.00027397,2]
[379222160,1755195067976,-400.0,0.00027397,2]
[379222161,1755195067992,-402.8,0.00027397,2]
[379222162,1755195068007,-9716.87,0.00027397,2]
[379222163,1755195068023,-1653.41,0.00027397,2]
[379222164,1755195068038,-14768.24,0.00027397,2]
[379222165,1755195068054,-5393.08,0.00027397,2]
[379222166,1755195068069,-2832.24,0.00027397,2]
[379222167,1755195068084,-7500.7,0.00027397,2]
[379222168,1755195068099,-400.0,0.00027397,2]
[379222169,1755195068115,-400.0,0.00027397,2]
[379222170,1755195068129,-400.0,0.00027397,2]
[379222171,1755195068144,-400.0,0.00027397,2]
[379222172,1755195068159,-662.4,0.00027397,2]
[379222173,1755195068175,-400.0,0.00027397,2]
[379222174,1755195068191,-1316.36,0.00027397,2]
[379222175,1755195068206,-8541.78,0.00027397,2]
[379222176,1755195068220,-400.0,0.00027397,2]
[379222177,1755195068237,-4333.05,0.00027397,2]
[379222178,1755195068252,-400.0,0.00027397,2]
[379222179,1755195068269,-847.02,0.00027397,2]
[379222180,1755195068284,-4295.83,0.00027397,2]
[379222181,1755195068301,-607.46,0.00027397,2]
[379222182,1755195068316,-509.53216926,0.00027397,2]
[379222183,1755195068331,-1899.72,0.00027397,2]
[379222184,1755195068346,-400.0,0.00027397,2]
[379222185,1755195068361,-9712.35,0.00027397,2]
[379222186,1755195068376,-758.75,0.00027397,2]
[379222187,1755195068390,-5357.44,0.00027397,2]
[379222188,1755195068405,-400.0,0.00027397,2]
[379222189,1755195068419,-400.0,0.00027397,2]
[379222190,1755195068433,-8207.21,0.00027397,2]
[379222191,1755195068449,-2410.4,0.00027397,2]
[379222192,1755195068463,-400.0,0.00027397,2]
[379222193,1755195068478,-400.0,0.00027397,2]
[379222194,1755195068492,-400.0,0.00027397,2]
[379222195,1755195068507,-400.0,0.00027397,2]
[379222196,1755195068522,-16713.1,0.00027397,2]
[379222197,1755195068537,-9119.95,0.00027397,2]
[379222198,1755195068553,-428.8,0.00027397,2]
[379222199,1755195068568,-400.0,0.00027397,2]
[379222200,1755195068582,-400.0,0.00027397,2]
[379222201,1755195068597,-400.0,0.00027397,2]
[379222202,1755195068612,-5987.76,0.00027397,2]
[379222203,1755195068627,-3912.18,0.00027397,2]
[379222204,1755195068641,-400.0,0.00027397,2]
[379222205,1755195068657,-938.87,0.00027397,2]
[379222206,1755195068671,-400.0,0.00027397,2]
[379222207,1755195068687,-3597.58,0.00027397,2]
[379222208,1755195068701,-400.0,0.00027397,2]
[379222209,1755195068717,-400.0,0.00027397,2]
[379222210,1755195068732,-400.0,0.00027397,2]
[379222211,1755195068747,-5984.96,0.00027397,2]
[379222212,1755195068761,-10226.16,0.00027397,2]
[379222213,1755195068775,-493.76,0.00027397,2]
[379222214,1755195068790,-496.13,0.00027397,2]
[379222215,1755195068804,-4789.44,0.00027397,2]
[379222216,1755195068819,-400.0,0.00027397,2]
[379222217,1755195068834,-400.0,0.00027397,2]
[379222218,1755195068847,-400.0,0.00027397,2]
[379222219,1755195068862,-151.0,0.00027397,7]
[379222220,1755195068878,-4293.26,0.00027397,2]
[379222221,1755195068893,-151.0,0.00027397,7]
[379222222,1755195068907,-400.0,0.00027397,2]
[379222223,1755195068923,-151.0,0.00027397,7]
[379222224,1755195068937,-400.0,0.00027397,2]
[379222225,1755195068953,-400.0,0.00027397,2]
[379222226,1755195068968,-608.88,0.00027397,2]
[379222227,1755195068982,-905.28,0.00027397,2]
[379222228,1755195068996,-2155.39,0.00027397,2]
[379222229,1755195069011,-210.500566,0.00027397,7]
[379222230,1755195069024,-400.0,0.00027397,2]
[379222231,1755195069039,-400.0,0.00027397,2]
[379222232,1755195069053,-210.500566,0.00027397,7]
[379222233,1755195069067,-400.0,0.00027397,2]
[379222234,1755195069080,-380.84188387,0.00027397,2]
[379222235,1755195069094,-400.0,0.00027397,2]
[379222236,1755195069109,-8112.64,0.00027397,2]
[379222237,1755195069121,-3618.78,0.00027397,2]
[379222238,1755195069135,-4852.46,0.00027397,2]
[379222239,1755195069150,-151.0,0.00027397,7]
[379222240,1755195069164,-8647.96,0.00027397,2]
[379222241,1755195069177,-400.0,0.00027397,2]
[379222242,1755195069191,-158.070843,0.00027397,7]
[379222243,1755195069205,-400.0,0.00027397,2]
[379222244,1755195069218,-400.0,0.00027397,2]
[379222245,1755195069234,-6087.62,0.00027397,2]
[379222246,1755195069248,-400.0,0.00027397,2]
[379222247,1755195069262,-477.15,0.00027397,2]
[379222248,1755195069276,-210.500566,0.00027397,7]
[379222249,1755195069292,-1494.62,0.00027397,2]
[379222250,1755195069306,-210.500566,0.00027397,7]
[379222251,1755195069321,-7010.754294,0.00027397,7]
[379222252,1755195069336,-400.0,0.00027397,2]
[379222253,1755195069351,-400.0,0.00027397,2]
[379222254,1755195069365,-400.0,0.00027397,2]
[379222255,1755195069380,-7010.754294,0.00027397,7]
[379222256,1755195069395,-844.68,0.00027397,2]
[379222257,1755195069408,-7010.754294,0.00027397,7]
[379222258,1755195069422,-151.0,0.00027397,7]
[379222259,1755195069436,-151.0,0.00027397,7]
[379222260,1755195069451,-501.43678025,0.00027397,2]
[379222261,1755195069467,-6551.56,0.00027397,2]
[379222262,1755195069483,-10107.48,0.00027397,2]
[379222263,1755195069496,-400.0,0.00027397,2]
[379222264,1755195069511,-6752.25,0.00027397,2]
[379222265,1755195069525,-400.0,0.00027397,2]
[379222266,1755195069539,-1201.74,0.00027397,2]
[379222267,1755195069554,-151.0,0.00027397,7]
[379222268,1755195069568,-400.0,0.00027397,2]
[379222269,1755195069583,-400.0,0.00027397,2]
[379222270,1755195069598,-400.0,0.00027397,2]
[379222271,1755195069612,-7010.754294,0.00027397,7]
[379222272,1755195069626,-7010.754294,0.00027397,7]
[379222273,1755195069641,-6481.25,0.00027397,2]
[379222274,1755195069651,-3401.0,0.00027397,2]
[379222275,1755195069660,-400.0,0.00027397,2]
[379222276,1755195069669,-400.0,0.00027397,2]
[379222277,1755195069679,-400.0,0.00027397,2]
[379222278,1755195069687,-1087.15,0.00027397,2]
[379222279,1755195069697,-939.89,0.00027397,2]
[379222280,1755195069706,-406.72,0.00027397,2]
[379222281,1755195069715,-5420.18,0.00027397,2]
[379222282,1755195069724,-2882.79,0.00027397,2]
[379222283,1755195069735,-7010.754294,0.00027397,7]
[379222284,1755195069753,-400.0,0.00027397,2]
[379222285,1755195069766,-7451.8,0.00027397,2]
[379222286,1755195069775,-400.0,0.00027397,2]
[379222287,1755195069785,-3105.92,0.00027397,2]
[379222288,1755195069796,-400.0,0.00027397,2]
[379222289,1755195069806,-914.68,0.00027397,2]
[379222290,1755195069815,-5717.28,0.00027397,2]
[379222291,1755195069825,-1187.22,0.00027397,2]
[379222292,1755195069834,-1396.82,0.00027397,2]
[379222293,1755195069843,-400.0,0.00027397,2]
[379222294,1755195069853,-7853.46,0.00027397,2]
[379222295,1755195069862,-400.0,0.00027397,2]
[379222296,1755195069874,-4337.26,0.00027397,2]
[379222297,1755195069884,-4040.32,0.00027397,2]
[379222298,1755195069893,-400.0,0.00027397,2]
[379222299,1755195069902,-400.0,0.00027397,2]
[379222300,1755195069911,-400.0,0.00027397,2]
[379222301,1755195069920,-1129.12,0.00027397,2]
[379222302,1755195069929,-9153.89,0.00027397,2]
[379222303,1755195069938,-400.0,0.00027397,2]
[379222304,1755195069949,-2771.33,0.00027397,2]
[379222305,1755195069959,-400.0,0.00027397,2]
[379222306,1755195069980,-400.0,0.00027397,2]
[379222307,1755195069999,-3707.19,0.00027397,2]
[379222308,1755195070009,-1012.2,0.00027397,2]
[379222309,1755195070018,-400.0,0.00027397,2]
[379222310,1755195070027,-400.0,0.00027397,2]
[379222311,1755195070037,-640.53,0.00027397,2]
[379222312,1755195070048,-400.0,0.00027397,2]
[379222313,1755195070058,-4457.69,0.00027397,2]
[379222314,1755195070067,-462.23,0.00027397,2]
[379222315,1755195070076,-711.16,0.00027397,2]
[379222316,1755195070086,-500.0,0.00027397,2]
[379222317,1755195070095,-1327.33,0.00027397,2]
[379222318,1755195070105,-400.0,0.00027397,2]
[379222319,1755195070888,-400.0,0.00027397,2]
[379222320,1755195070911,-5891.95,0.00027397,2]
[379222321,1755195070940,-934.76,0.00027397,2]
[379222322,1755195070976,-3326.96,0.00027397,2]
[379222323,1755195071000,-602.25,0.00027397,2]
[379222324,1755195071009,-2288.33,0.00027397,2]
[379222325,1755195071019,-3605.18,0.00027397,2]
[379222326,1755195071028,-3511.28,0.00027397,2]
[379222327,1755195071038,-17401.32,0.00027397,2]
[379222328,1755195071048,-558.58,0.00027397,2]
[379222329,1755195071057,-400.0,0.00027397,2]
[379222330,1755195071066,-400.0,0.00027397,2]
[379222331,1755195071075,-2208.72,0.00027397,2]
[379222332,1755195071084,-400.0,0.00027397,2]
[379222333,1755195071094,-1109.61,0.00027397,2]
[379222334,1755195071103,-1941.46,0.00027397,2]
[379222335,1755195071112,-1890.18,0.00027397,2]
[379222336,1755195071120,-12500.84,0.00027397,2]
[379222337,1755195071130,-1689.87,0.00027397,2]
[379222338,1755195071139,-500.0,0.00027397,2]
[379222339,1755195071148,-500.0,0.00027397,2]
[379222340,1755195071157,-500.0,0.00027397,2]
[379222341,1755195071166,-500.0,0.00027397,2]
[379222342,1755195071175,-500.0,0.00027397,2]
[379222343,1755195071184,-1951.51,0.00027397,2]
[379222344,1755195071193,-500.0,0.00027397,2]
[379222345,1755195071202,-500.0,0.00027397,2]
[379222346,1755195071211,-3672.69,0.00027397,2]
[379222347,1755195071220,-2734.47,0.00027397,2]
[379222348,1755195071230,-500.0,0.00027397,2]
[379222349,1755195071239,-1335.35,0.00027397,2]
[379222350,1755195071248,-400.0,0.00027397,2]
[379222351,1755195071257,-500.0,0.00027397,2]
[379222352,1755195071266,-4514.79,0.00027397,2]
[379222353,1755195071275,-545.33,0.00027397,2]
[379222354,1755195071284,-2872.41,0.00027397,2]
[379222355,1755195071293,-400.0,0.00027397,2]
[379222356,1755195071302,-695.6,0.00027397,2]
[379222357,1755195071311,-2566.74,0.00027397,2]
[379222358,1755195071322,-3192.3,0.00027397,2]
[379222359,1755195071332,-4053.06,0.00027397,2]
[379222360,1755195071344,-400.0,0.00027397,2]
[379222361,1755195071354,-1380.39,0.00027397,2]
[379222362,1755195071364,-9568.02,0.00027397,2]
[379222363,1755195071374,-510.83,0.00027397,2]
[379222364,1755195071383,-400.0,0.00027397,2]
[379222365,1755195071391,-400.0,0.00027397,2]
[379222366,1755195071400,-1737.53,0.00027397,2]
[379222367,1755195071409,-3189.39,0.00027397,2]
[379222368,1755195071418,-1871.16,0.00027397,2]
[379222369,1755195071428,-639.23,0.00027397,2]
[379222370,1755195071437,-151.0,0.00027397,7]
[379222371,1755195071446,-151.0,0.00027397,7]
[379222372,1755195071455,-151.0,0.00027397,7]
[379222373,1755195071465,-1012.56,0.00027397,2]
[379222374,1755195071474,-400.0,0.00027397,2]
[379222375,1755195071483,-400.0,0.00027397,2]
[379222376,1755195071492,-1643.18,0.00027397,2]
[379222377,1755195071501,-657.19,0.00027397,2]
[379222378,1755195071510,-2643.25,0.00027397,2]
[379222379,1755195071519,-400.0,0.00027397,2]
[379222380,1755195071529,-5069.4,0.00027397,2]
[379222381,1755195071540,-3397.01,0.00027397,2]
[379222382,1755195071551,-3173.48,0.00027397,2]
[379222383,1755195071560,-400.0,0.00027397,2]
[379222384,1755195071570,-400.0,0.00027397,2]
[379222385,1755195071579,-4070.23,0.00027397,2]
[379222386,1755195071589,-406.52007179,0.00027397,2]
[379222387,1755195071599,-151.0,0.00027397,7]
[379222388,1755195071608,-12179.7,0.00027397,2]
[379222389,1755195071617,-151.0,0.00027397,7]
[379222390,1755195071626,-151.0,0.00027397,7]
[379222391,1755195071635,-2947.93,0.00027397,2]
[379222392,1755195071644,-4084.72,0.00027397,2]
[379222393,1755195071654,-4474.77,0.00027397,2]
[379222394,1755195071663,-400.0,0.00027397,2]
[379222395,1755195071672,-317.37454,0.00027397,7]
[379222396,1755195071682,-317.37454,0.00027397,7]
[379222397,1755195071691,-400.0,0.00027397,2]
[379222398,1755195071700,-1066.86,0.00027397,2]
[379222399,1755195071710,-714.51,0.00027397,2]
[379222400,1755195071719,-400.0,0.00027397,2]
[379222401,1755195071728,-6626.13,0.00027397,2]
[379222402,1755195071736,-317.37454,0.00027397,7]
[379222403,1755195071745,-9843.12,0.00027397,2]
[379222404,1755195071755,-1269.18,0.00027397,2]
[379222405,1755195071764,-1281.1,0.00027397,2]
[379222406,1755195071773,-400.0,0.00027397,2]
[379222407,1755195071782,-400.0,0.00027397,2]
[379222408,1755195071791,-400.0,0.00027397,2]
[379222409,1755195071801,-10816.78,0.00027397,2]
[379222410,1755195071810,-429.87,0.00027397,2]
[379222411,1755195071819,-400.0,0.00027397,2]
[379222412,1755195071829,-400.0,0.00027397,2]
[379222413,1755195071838,-400.0,0.00027397,2]
[379222414,1755195071847,-1482.29,0.00027397,2]
[379222415,1755195071856,-2048.12,0.00027397,2]
[379222416,1755195071867,-400.0,0.00027397,2]
[379222417,1755195071878,-4609.47,0.00027397,2]
[379222418,1755195071887,-583.19,0.00027397,2]
[379222419,1755195071896,-583.19,0.00027397,2]
[379222420,1755195071905,-8140.84,0.00027397,2]
[379222421,1755195071914,-583.19,0.00027397,2]
[379222422,1755195071923,-400.0,0.00027397,2]
[379222423,1755195071932,-400.0,0.00027397,2]
[379222424,1755195071941,-583.19,0.00027397,2]
[379222425,1755195071951,-583.19,0.00027397,2]
[379222426,1755195071961,-583.19,0.00027397,2]
[379222427,1755195071971,-1624.07,0.00027397,2]
[379222428,1755195071979,-583.19,0.00027397,2]
[379222429,1755195071988,-583.19,0.00027397,2]
[379222430,1755195071998,-516.95,0.00027397,2]
[379222431,1755195072007,-478.64,0.00027397,2]
[379222432,1755195072016,-583.19,0.00027397,2]
[379222434,1755195072025,-400.0,0.00027397,2]
[379222435,1755195072034,-583.19,0.00027397,2]
[379222436,1755195072044,-400.0,0.00027397,2]
[379222437,1755195072053,-583.19,0.00027397,2]
[379222438,1755195072062,-2865.25,0.00027397,2]
[379222439,1755195072071,-400.0,0.00027397,2]
[379222440,1755195072079,-583.19,0.00027397,2]
[379222441,1755195072088,-400.0,0.00027397,2]
[379222442,1755195072097,-583.19,0.00027397,2]
[379222443,1755195072106,-1538.52,0.00027397,2]
[379222444,1755195072115,-583.19,0.00027397,2]
[379222445,1755195072124,-3836.96,0.00027397,2]
[379222446,1755195072133,-583.19,0.00027397,2]
[379222447,1755195072142,-6206.14,0.00027397,2]
[379222448,1755195072151,-583.19,0.00027397,2]
[379222449,1755195072160,-400.0,0.00027397,2]
[379222450,1755195072170,-9286.73,0.00027397,2]
[379222451,1755195072179,-583.19,0.00027397,2]
[379222452,1755195072188,-583.19,0.00027397,2]
[379222453,1755195072197,-492.62,0.00027397,2]
[379222454,1755195072206,-583.19,0.00027397,2]
[379222455,1755195072215,-317.37454,0.00027397,7]
[379222456,1755195072224,-317.37454,0.00027397,7]
[379222457,1755195072234,-583.19,0.00027397,2]
[379222458,1755195072243,-3385.61,0.00027397,2]
[379222459,1755195072252,-7670.2,0.00027397,2]
[379222460,1755195072261,-317.37454,0.00027397,7]
[379222461,1755195072271,-583.19,0.00027397,2]
[379222462,1755195072280,-6419.24,0.00027397,2]
[379222463,1755195072290,-583.19,0.00027397,2]
[379222464,1755195072300,-400.0,0.00027397,2]
[379222465,1755195072309,-402.05,0.00027397,2]
[379222466,1755195072318,-583.19,0.00027397,2]
[379222467,1755195072327,-583.27704134,0.00027397,2]
[379222468,1755195072336,-1452.57,0.00027397,2]
[379222469,1755195072345,-2882.8,0.00027397,2]
[379222470,1755195072355,-400.0,0.00027397,2]
[379222471,1755195072364,-955.53,0.00027397,2]
[379222472,1755195072373,-400.0,0.00027397,2]
[379222473,1755195072382,-4181.99,0.00027397,2]
[379222474,1755195072392,-400.0,0.00027397,2]
[379222475,1755195072401,-10978.99,0.00027397,2]
[379222476,1755195072411,-586.03,0.00027397,2]
[379222477,1755195072420,-1428.33,0.00027397,2]
[379222478,1755195072429,-3260.56,0.00027397,2]
[379222479,1755195072438,-1638.03,0.00027397,2]
[379222480,1755195072448,-400.0,0.00027397,2]
[379222481,1755195072457,-1575.75,0.00027397,2]
[379222482,1755195072466,-400.0,0.00027397,2]
[379222483,1755195072475,-1222.07,0.00027397,2]
[379222484,1755195072484,-2035.97,0.00027397,2]
[379222485,1755195072494,-488.37,0.00027397,2]
[379222486,1755195072503,-400.0,0.00027397,2]
[379222487,1755195072512,-3363.74,0.00027397,2]
[379222488,1755195072521,-1050.07,0.00027397,2]
[379222489,1755195072531,-6462.54,0.00027397,2]
[379222490,1755195072540,-986.64,0.00027397,2]
[379222491,1755195072551,-400.0,0.00027397,2]
[379222492,1755195072561,-5731.72,0.00027397,2]
[379222493,1755195072570,-16712.66,0.00027397,2]
[379222494,1755195072579,-3350.95,0.00027397,2]
[379222495,1755195072589,-400.0,0.00027397,2]
[379222496,1755195072598,-6322.66,0.00027397,2]
[379222497,1755195072606,-207.94031362,0.00027397,2]
[379222498,1755195072615,-400.0,0.00027397,2]
[379222499,1755195072625,-400.0,0.00027397,2]
[379222500,1755195072634,-1491.42,0.00027397,2]
[379222501,1755195072643,-3255.17,0.00027397,2]
[379222502,1755195072652,-2919.12,0.00027397,2]
[379222503,1755195072662,-5500.95,0.00027397,2]
[379222504,1755195072671,-2058.58,0.00027397,2]
[379222505,1755195072680,-400.0,0.00027397,2]
[379222506,1755195072690,-1471.89,0.00027397,2]
[379222507,1755195072699,-911.38,0.00027397,2]
[379222508,1755195072709,-400.0,0.00027397,2]
[379222509,1755195072718,-2418.48,0.00027397,2]
[379222510,1755195072727,-1890.03,0.00027397,2]
[379222511,1755195072736,-734.42,0.00027397,2]
[379222512,1755195072745,-1471.86,0.00027397,2]
[379222513,1755195072756,-400.0,0.00027397,2]
[379222514,1755195072765,-1471.86,0.00027397,2]
[379222515,1755195072775,-1471.86,0.00027397,2]
[379222516,1755195072784,-400.0,0.00027397,2]
[379222517,1755195072794,-1471.86,0.00027397,2]
[379222518,1755195072803,-1471.86,0.00027397,2]
[379222519,1755195072812,-400.0,0.00027397,2]
[379222520,1755195072822,-1471.86,0.00027397,2]
[379222521,1755195072832,-3110.29,0.00027397,2]
[379222522,1755195072841,-1105.85,0.00027397,2]
[379222523,1755195072850,-1471.86,0.00027397,2]
[379222524,1755195072860,-16685.26,0.00027397,2]
[379222525,1755195072871,-1471.86,0.00027397,2]
[379222526,1755195072879,-1471.86,0.00027397,2]
[379222527,1755195072887,-400.0,0.00027397,2]
[379222528,1755195072896,-1471.86,0.00027397,2]
[379222529,1755195072907,-1113.8,0.00027397,2]
[379222530,1755195072916,-1471.86,0.00027397,2]
[379222531,1755195072925,-1471.86,0.00027397,2]
[379222532,1755195072935,-400.0,0.00027397,2]
[379222533,1755195072944,-1471.86,0.00027397,2]
[379222534,1755195072954,-1471.86,0.00027397,2]
[379222535,1755195072973,-1471.86,0.00027397,2]
[379222536,1755195072982,-1471.86,0.00027397,2]